[Event "*** Titled Tuesday Blitz"]
[Site "Chess.com"]
[Date "2020.11.03"]
[Round "10"]
[White "cstevens1"]
[Black "maximnovik"]
[Result "1/2-1/2"]
[WhiteElo "2695"]
[BlackElo "2544"]
[TimeControl "180+1"]
[EndTime "12:00:35 PST"]
[Termination "Game drawn by repetition"]

1. Nf3 {[%clk 0:03:00.9]} 1... Nf6 {[%clk 0:02:59.2]} 2. g3 {[%clk 0:03:01.8]}
2... g6 {[%clk 0:02:56.7]} 3. Bg2 {[%clk 0:03:02.7]} 3... Bg7 {[%clk 0:02:55.2]}
4. O-O {[%clk 0:03:03.6]} 4... d5 {[%clk 0:02:55.5]} 5. d4 {[%clk 0:03:03.1]}
5... O-O {[%clk 0:02:55.1]} 6. c4 {[%clk 0:03:04]} 6... dxc4 {[%clk 0:02:52.5]}
7. Na3 {[%clk 0:03:00.3]} 7... Nc6 {[%clk 0:02:52.5]} 8. Nxc4 {[%clk 0:02:59.9]}
8... Be6 {[%clk 0:02:53]} 9. b3 {[%clk 0:02:59.3]} 9... a5 {[%clk 0:02:53.5]}
10. a4 {[%clk 0:02:54.1]} 10... Nb4 {[%clk 0:02:52.8]} 11. Bb2 {[%clk
0:02:47.8]} 11... Bd5 {[%clk 0:02:52.5]} 12. e3 {[%clk 0:02:45.8]} 12... c6
{[%clk 0:02:52.6]} 13. Qe2 {[%clk 0:02:45.7]} 13... b5 {[%clk 0:02:43.4]} 14.
Ncd2 {[%clk 0:02:40.2]} 14... bxa4 {[%clk 0:02:20.6]} 15. Rxa4 {[%clk
0:02:19.3]} 15... Ne4 {[%clk 0:02:20.2]} 16. Rc1 {[%clk 0:02:02.5]} 16... Nxd2
{[%clk 0:02:16]} 17. Nxd2 {[%clk 0:02:03.4]} 17... Bxg2 {[%clk 0:02:09.5]} 18.
Kxg2 {[%clk 0:02:04.3]} 18... e5 {[%clk 0:02:06.1]} 19. dxe5 {[%clk 0:01:41.8]}
19... Nd3 {[%clk 0:02:04]} 20. Rb1 {[%clk 0:01:41.9]} 20... Bxe5 {[%clk
0:01:37.6]} 21. Bxe5 {[%clk 0:01:40.3]} 21... Nxe5 {[%clk 0:01:37.1]} 22. Rd4
{[%clk 0:01:35.1]} 22... Qe7 {[%clk 0:01:31.4]} 23. Nc4 {[%clk 0:01:28]} 23...
Nxc4 {[%clk 0:01:29.6]} 24. Qxc4 {[%clk 0:01:23]} 24... c5 {[%clk 0:01:21.9]}
25. Rd5 {[%clk 0:01:18.8]} 25... Rfc8 {[%clk 0:01:22.4]} 26. Rbd1 {[%clk
0:01:18.2]} 26... Ra7 {[%clk 0:01:20]} 27. h4 {[%clk 0:00:59.1]} 27... h5 {[%clk
0:01:19.3]} 28. Rd6 {[%clk 0:00:57.3]} 28... Kh7 {[%clk 0:01:13.3]} 29. Qd5
{[%clk 0:00:47]} 29... Qb7 {[%clk 0:01:07.1]} 30. Rd7 {[%clk 0:00:31.8]} 30...
Qxd5+ {[%clk 0:01:05.3]} 31. R1xd5 {[%clk 0:00:31.3]} 31... Rcc7 {[%clk
0:00:54.1]} 32. Rxc7 {[%clk 0:00:20.4]} 32... Rxc7 {[%clk 0:00:54]} 33. Kf3
{[%clk 0:00:21]} 33... Kg7 {[%clk 0:00:47.8]} 34. Ke4 {[%clk 0:00:20.8]} 34...
Rb7 {[%clk 0:00:34]} 35. Rxc5 {[%clk 0:00:20.4]} 35... Rxb3 {[%clk 0:00:33.4]}
36. Rxa5 {[%clk 0:00:20.8]} 36... Rb2 {[%clk 0:00:33.6]} 37. Kf3 {[%clk
0:00:21.2]} 37... Rb4 {[%clk 0:00:33.4]} 38. Rc5 {[%clk 0:00:21.5]} 38... Ra4
{[%clk 0:00:33.2]} 39. Rc6 {[%clk 0:00:21.7]} 39... Rb4 {[%clk 0:00:32.9]} 40.
Rd6 {[%clk 0:00:22.1]} 40... Ra4 {[%clk 0:00:32.7]} 41. Rd4 {[%clk 0:00:22.3]}
41... Ra5 {[%clk 0:00:32.4]} 42. Rd3 {[%clk 0:00:22.4]} 42... Ra2 {[%clk
0:00:32.2]} 43. e4 {[%clk 0:00:22.6]} 43... Ra4 {[%clk 0:00:32.1]} 44. Ke3
{[%clk 0:00:22.9]} 44... Ra2 {[%clk 0:00:32.1]} 45. f3 {[%clk 0:00:23.2]} 45...
Rg2 {[%clk 0:00:31.8]} 46. Kf4 {[%clk 0:00:23.5]} 46... Re2 {[%clk 0:00:31.7]}
47. Rd5 {[%clk 0:00:23.8]} 47... Re1 {[%clk 0:00:31.6]} 48. Rd7 {[%clk
0:00:23.9]} 48... Re2 {[%clk 0:00:31.2]} 49. e5 {[%clk 0:00:23.6]} 49... Re1
{[%clk 0:00:30.9]} 50. Rb7 {[%clk 0:00:23.4]} 50... Re2 {[%clk 0:00:30.6]} 51.
Rb4 {[%clk 0:00:23.8]} 51... Ra2 {[%clk 0:00:28.3]} 52. Re4 {[%clk 0:00:23.9]}
52... Ra7 {[%clk 0:00:25.9]} 53. Rd4 {[%clk 0:00:22.4]} 53... Rb7 {[%clk
0:00:25.1]} 54. Rc4 {[%clk 0:00:22.3]} 54... Ra7 {[%clk 0:00:24.9]} 55. Rb4
{[%clk 0:00:22.3]} 55... Rc7 {[%clk 0:00:24.9]} 56. Rb3 {[%clk 0:00:20.8]} 56...
Rc4+ {[%clk 0:00:24.4]} 57. Kg5 {[%clk 0:00:19.6]} 57... Rc5 {[%clk 0:00:24.6]}
58. Kf4 {[%clk 0:00:18]} 58... Rc4+ {[%clk 0:00:24.1]} 59. Ke3 {[%clk
0:00:18.3]} 59... Rc5 {[%clk 0:00:24.2]} 60. Ke4 {[%clk 0:00:18.1]} 60... Rc4+
{[%clk 0:00:23.4]} 61. Kd5 {[%clk 0:00:18.1]} 61... Rc7 {[%clk 0:00:23.3]} 62.
f4 {[%clk 0:00:18.2]} 62... Ra7 {[%clk 0:00:22.6]} 63. Rc3 {[%clk 0:00:17.3]}
63... Ra5+ {[%clk 0:00:22.1]} 64. Ke4 {[%clk 0:00:16.1]} 64... Ra4+ {[%clk
0:00:22.1]} 65. Kd5 {[%clk 0:00:16.3]} 65... Ra5+ {[%clk 0:00:22.2]} 66. Kd6
{[%clk 0:00:16.5]} 66... Ra6+ {[%clk 0:00:21.9]} 67. Kd5 {[%clk 0:00:16.6]}
67... Ra5+ {[%clk 0:00:22]} 1/2-1/2

[Event "*** Titled Tuesday Blitz"]
[Site "Chess.com"]
[Date "2020.11.03"]
[Round "10"]
[White "tteshan"]
[Black "Tomekas1"]
[Result "0-1"]
[WhiteElo "2355"]
[BlackElo "2457"]
[TimeControl "180+1"]
[EndTime "12:00:39 PST"]
[Termination "Tomekas1 won by resignation"]

1. e4 {[%clk 0:03:00.9]} 1... c5 {[%clk 0:03:00.2]} 2. Nf3 {[%clk 0:03:00]} 2...
g6 {[%clk 0:03:00.6]} 3. c3 {[%clk 0:03:00.3]} 3... d5 {[%clk 0:03:00.6]} 4.
exd5 {[%clk 0:03:00.2]} 4... Qxd5 {[%clk 0:03:01.5]} 5. d4 {[%clk 0:03:00.7]}
5... Nc6 {[%clk 0:03:00.3]} 6. Be3 {[%clk 0:02:59.9]} 6... cxd4 {[%clk
0:02:59.1]} 7. Nxd4 {[%clk 0:02:57.1]} 7... Bg7 {[%clk 0:02:58]} 8. Nxc6 {[%clk
0:02:52.9]} 8... Qxd1+ {[%clk 0:02:54.7]} 9. Kxd1 {[%clk 0:02:52.7]} 9... bxc6
{[%clk 0:02:55.6]} 10. Bc4 {[%clk 0:02:44.6]} 10... Bg4+ {[%clk 0:02:54.7]} 11.
f3 {[%clk 0:02:44.2]} 11... Bf5 {[%clk 0:02:37.8]} 12. Nd2 {[%clk 0:02:42.5]}
12... Nf6 {[%clk 0:02:34.5]} 13. Ke2 {[%clk 0:02:42.1]} 13... Nd5 {[%clk
0:02:33.6]} 14. Bc5 {[%clk 0:02:34.9]} 14... Nf4+ {[%clk 0:02:26.6]} 15. Kf2
{[%clk 0:02:33.1]} 15... Bd3 {[%clk 0:02:15.5]} 16. Be3 {[%clk 0:02:30]} 16...
Bxc4 {[%clk 0:02:14.4]} 17. Nxc4 {[%clk 0:02:26.6]} 17... Nd5 {[%clk 0:02:14.6]}
18. Bc5 {[%clk 0:02:21.8]} 18... Nf4 {[%clk 0:02:07.5]} 19. Rad1 {[%clk
0:02:19.3]} 19... Bf6 {[%clk 0:01:53.5]} 20. g3 {[%clk 0:02:14.7]} 20... Nd5
{[%clk 0:01:52.9]} 21. Rhe1 {[%clk 0:02:12.7]} 21... O-O {[%clk 0:01:47]} 22.
Ne5 {[%clk 0:01:59.4]} 22... Rfb8 {[%clk 0:01:38.9]} 23. Rd2 {[%clk 0:01:45.2]}
23... Rb5 {[%clk 0:01:33.4]} 24. Bd4 {[%clk 0:00:55.2]} 24... c5 {[%clk
0:01:18.4]} 25. c4 {[%clk 0:00:55.1]} 25... Ra5 {[%clk 0:01:18.6]} 26. Bxc5
{[%clk 0:00:36]} 26... Rxc5 {[%clk 0:01:02.2]} 27. cxd5 {[%clk 0:00:23.5]} 27...
Rd8 {[%clk 0:00:58.9]} 28. Ng4 {[%clk 0:00:18.1]} 28... Rcxd5 {[%clk 0:00:29.2]}
29. Nxf6+ {[%clk 0:00:17.2]} 29... exf6 {[%clk 0:00:28.8]} 30. Rxd5 {[%clk
0:00:15.3]} 30... Rxd5 {[%clk 0:00:29.7]} 31. Re8+ {[%clk 0:00:14.5]} 31... Kg7
{[%clk 0:00:29.7]} 32. Ke3 {[%clk 0:00:14.6]} 32... Rd1 {[%clk 0:00:25.6]} 33.
Ke2 {[%clk 0:00:14.4]} 33... Rb1 {[%clk 0:00:24.9]} 34. Rb8 {[%clk 0:00:14.4]}
34... Rh1 {[%clk 0:00:23.8]} 35. h4 {[%clk 0:00:13.6]} 35... f5 {[%clk
0:00:21.2]} 36. Rb7 {[%clk 0:00:13.3]} 36... f4 {[%clk 0:00:21.3]} 37. gxf4
{[%clk 0:00:10]} 37... Rxh4 {[%clk 0:00:21.3]} 38. Ke3 {[%clk 0:00:10.4]} 38...
Rh2 {[%clk 0:00:20.2]} 39. a4 {[%clk 0:00:08.5]} 39... a5 {[%clk 0:00:19.5]} 40.
Rb5 {[%clk 0:00:07.6]} 40... h5 {[%clk 0:00:19.9]} 41. Rxa5 {[%clk 0:00:06.9]}
41... Rxb2 {[%clk 0:00:19.7]} 42. f5 {[%clk 0:00:06.5]} 42... g5 {[%clk
0:00:17.4]} 43. f4 {[%clk 0:00:05.5]} 43... g4 {[%clk 0:00:16.9]} 44. f6+ {[%clk
0:00:05.1]} 44... Kh6 {[%clk 0:00:15.6]} 45. Ra7 {[%clk 0:00:04.1]} 45... g3
{[%clk 0:00:13.8]} 46. Rxf7 {[%clk 0:00:03.5]} 46... g2 {[%clk 0:00:13.3]} 47.
Rg7 {[%clk 0:00:03.9]} 47... h4 {[%clk 0:00:13.2]} 48. Rg8 {[%clk 0:00:03.4]}
48... Rb3+ {[%clk 0:00:05.7]} 49. Ke4 {[%clk 0:00:03.3]} 49... Rg3 {[%clk
0:00:05.4]} 50. Rxg3 {[%clk 0:00:02.8]} 50... hxg3 {[%clk 0:00:05]} 51. f7
{[%clk 0:00:02.2]} 51... Kg7 {[%clk 0:00:05.4]} 52. f8=Q+ {[%clk 0:00:02.3]}
52... Kxf8 {[%clk 0:00:05.6]} 53. a5 {[%clk 0:00:01.8]} 53... g1=Q {[%clk
0:00:06.5]} 54. a6 {[%clk 0:00:02.3]} 54... Qa7 {[%clk 0:00:07.2]} 55. Kf3
{[%clk 0:00:02.6]} 55... Qxa6 {[%clk 0:00:06]} 56. Kxg3 {[%clk 0:00:03.5]} 56...
Qc4 {[%clk 0:00:06.5]} 57. Kg4 {[%clk 0:00:04.4]} 57... Kf7 {[%clk 0:00:07.1]}
58. Kg5 {[%clk 0:00:05.2]} 58... Qe6 {[%clk 0:00:07.4]} 59. f5 {[%clk
0:00:06.1]} 59... Qe4 {[%clk 0:00:07.3]} 60. f6 {[%clk 0:00:06.3]} 60... Qg6+
{[%clk 0:00:07.3]} 0-1

[Event "*** Titled Tuesday Blitz"]
[Site "Chess.com"]
[Date "2020.11.03"]
[Round "10"]
[White "djano"]
[Black "Goryachkina"]
[Result "1/2-1/2"]
[WhiteElo "2470"]
[BlackElo "2592"]
[TimeControl "180+1"]
[EndTime "12:00:48 PST"]
[Termination "Game drawn by repetition"]

1. d4 {[%clk 0:03:00.9]} 1... d5 {[%clk 0:02:59.2]} 2. Nf3 {[%clk 0:03:00.8]}
2... Nf6 {[%clk 0:02:58.5]} 3. Bf4 {[%clk 0:03:00.7]} 3... Bf5 {[%clk
0:02:57.5]} 4. e3 {[%clk 0:02:59.3]} 4... e6 {[%clk 0:02:57.4]} 5. c4 {[%clk
0:02:58.3]} 5... dxc4 {[%clk 0:02:57.5]} 6. Nc3 {[%clk 0:02:55.7]} 6... Bd6
{[%clk 0:02:56.5]} 7. Bxd6 {[%clk 0:02:40.6]} 7... cxd6 {[%clk 0:02:56]} 8. Bxc4
{[%clk 0:02:40.7]} 8... O-O {[%clk 0:02:55.7]} 9. O-O {[%clk 0:02:40.2]} 9... d5
{[%clk 0:02:53.8]} 10. Bd3 {[%clk 0:02:34.4]} 10... Bxd3 {[%clk 0:02:52.9]} 11.
Qxd3 {[%clk 0:02:35.3]} 11... Nc6 {[%clk 0:02:53.3]} 12. Qb5 {[%clk 0:02:28.5]}
12... Qe7 {[%clk 0:02:38.3]} 13. Rfc1 {[%clk 0:02:27]} 13... Rfc8 {[%clk
0:02:37.5]} 14. Nd2 {[%clk 0:02:20]} 14... Ne8 {[%clk 0:02:36.1]} 15. h3 {[%clk
0:02:15.2]} 15... Nd6 {[%clk 0:02:36.1]} 16. Qe2 {[%clk 0:02:14.9]} 16... h6
{[%clk 0:02:29.7]} 17. Nb5 {[%clk 0:02:07]} 17... Na5 {[%clk 0:02:08.3]} 18. b3
{[%clk 0:02:00.8]} 18... a6 {[%clk 0:02:04.9]} 19. Nxd6 {[%clk 0:01:53.2]} 19...
Qxd6 {[%clk 0:02:05.8]} 20. Qd3 {[%clk 0:01:39.2]} 20... Qa3 {[%clk 0:01:56.2]}
21. Rc2 {[%clk 0:01:29.3]} 21... Rxc2 {[%clk 0:01:42.4]} 22. Qxc2 {[%clk
0:01:30.2]} 22... Nc6 {[%clk 0:01:42.7]} 23. Qc1 {[%clk 0:01:18]} 23... Qa5
{[%clk 0:01:36.8]} 24. a3 {[%clk 0:01:14.9]} 24... Rc8 {[%clk 0:01:35.6]} 25.
Qb2 {[%clk 0:00:49]} 25... Na7 {[%clk 0:01:20.7]} 26. Rc1 {[%clk 0:00:48]} 26...
Rxc1+ {[%clk 0:01:15.3]} 27. Qxc1 {[%clk 0:00:48.9]} 27... Nb5 {[%clk
0:01:13.8]} 28. Qc8+ {[%clk 0:00:48.6]} 28... Kh7 {[%clk 0:01:13.2]} 29. Nf3
{[%clk 0:00:49]} 29... Qc7 {[%clk 0:00:41]} 30. Qxc7 {[%clk 0:00:47.8]} 30...
Nxc7 {[%clk 0:00:40.9]} 31. Kf1 {[%clk 0:00:47.5]} 31... f6 {[%clk 0:00:38.8]}
32. Ke2 {[%clk 0:00:47.2]} 32... Kg6 {[%clk 0:00:38.2]} 33. Kd3 {[%clk
0:00:46.7]} 33... Kf7 {[%clk 0:00:37.5]} 34. a4 {[%clk 0:00:43.3]} 34... Ke7
{[%clk 0:00:37.1]} 35. Ne1 {[%clk 0:00:39.9]} 35... Kd6 {[%clk 0:00:35.1]} 36.
f4 {[%clk 0:00:38.8]} 36... a5 {[%clk 0:00:28.8]} 37. g4 {[%clk 0:00:35.1]}
37... Kc6 {[%clk 0:00:28.3]} 38. Nc2 {[%clk 0:00:32.3]} 38... b5 {[%clk
0:00:25.9]} 39. Na3 {[%clk 0:00:30.5]} 39... b4 {[%clk 0:00:25.5]} 40. Nb1
{[%clk 0:00:26.3]} 40... Ne8 {[%clk 0:00:25.3]} 41. Nd2 {[%clk 0:00:18.6]} 41...
Nd6 {[%clk 0:00:25.5]} 42. e4 {[%clk 0:00:14.1]} 42... dxe4+ {[%clk 0:00:21.1]}
43. Nxe4 {[%clk 0:00:15]} 43... Nc8 {[%clk 0:00:20.2]} 44. Nc5 {[%clk
0:00:12.9]} 44... e5 {[%clk 0:00:20.2]} 45. fxe5 {[%clk 0:00:13.3]} 45... fxe5
{[%clk 0:00:20.4]} 46. Ne6 {[%clk 0:00:13.8]} 46... exd4 {[%clk 0:00:19.3]} 47.
Nxg7 {[%clk 0:00:12.6]} 47... Nd6 {[%clk 0:00:14.1]} 48. Kxd4 {[%clk 0:00:12.7]}
48... Nb7 {[%clk 0:00:11.3]} 49. Kd3 {[%clk 0:00:08.1]} 49... Nc5+ {[%clk
0:00:11.3]} 50. Kc4 {[%clk 0:00:07.2]} 50... Ne4 {[%clk 0:00:07.9]} 51. Nf5
{[%clk 0:00:04.2]} 51... Nd2+ {[%clk 0:00:08]} 52. Kd3 {[%clk 0:00:03.1]} 52...
Nxb3 {[%clk 0:00:08.4]} 53. Nxh6 {[%clk 0:00:04]} 53... Nc5+ {[%clk 0:00:08.3]}
54. Kc4 {[%clk 0:00:04.6]} 54... Nxa4 {[%clk 0:00:08.4]} 55. Nf5 {[%clk
0:00:04.1]} 55... Nb6+ {[%clk 0:00:08.7]} 56. Kb3 {[%clk 0:00:03.9]} 56... Kb5
{[%clk 0:00:09.1]} 57. Nd4+ {[%clk 0:00:04.2]} 57... Kc5 {[%clk 0:00:09.6]} 58.
Ne6+ {[%clk 0:00:04.8]} 58... Kb5 {[%clk 0:00:10.2]} 59. Nd4+ {[%clk 0:00:04.8]}
59... Kc5 {[%clk 0:00:10.8]} 60. Ne6+ {[%clk 0:00:05.4]} 60... Kb5 {[%clk
0:00:11.4]} 61. Nd4+ {[%clk 0:00:05.7]} 1/2-1/2

[Event "*** Titled Tuesday Blitz"]
[Site "Chess.com"]
[Date "2020.11.03"]
[Round "10"]
[White "BlackBoarder"]
[Black "CM_rui"]
[Result "1-0"]
[WhiteElo "2534"]
[BlackElo "2396"]
[TimeControl "180+1"]
[EndTime "12:00:48 PST"]
[Termination "BlackBoarder won by checkmate"]

1. e4 {[%clk 0:02:50.8]} 1... e5 {[%clk 0:02:59.5]} 2. Nf3 {[%clk 0:02:50.7]}
2... Nc6 {[%clk 0:02:59.7]} 3. d4 {[%clk 0:02:50.7]} 3... exd4 {[%clk
0:03:00.2]} 4. Bc4 {[%clk 0:02:51]} 4... Nf6 {[%clk 0:02:58.2]} 5. O-O {[%clk
0:02:51.5]} 5... Be7 {[%clk 0:02:56.3]} 6. e5 {[%clk 0:02:51.4]} 6... Ng8 {[%clk
0:02:49.2]} 7. Re1 {[%clk 0:02:47.4]} 7... d5 {[%clk 0:02:43]} 8. exd6 {[%clk
0:02:28.6]} 8... Qxd6 {[%clk 0:02:39.9]} 9. Ng5 {[%clk 0:02:07.3]} 9... Nh6
{[%clk 0:02:27.6]} 10. Ne4 {[%clk 0:01:55.2]} 10... Qg6 {[%clk 0:02:25.4]} 11.
Bd3 {[%clk 0:01:20.4]} 11... Bf5 {[%clk 0:02:24.6]} 12. Bxh6 {[%clk 0:01:12.5]}
12... gxh6 {[%clk 0:02:20.6]} 13. Qf3 {[%clk 0:01:01.1]} 13... O-O-O {[%clk
0:02:09.5]} 14. Nd6+ {[%clk 0:00:37.4]} 14... Qxd6 {[%clk 0:02:08.5]} 15. Qxf5+
{[%clk 0:00:35.1]} 15... Kb8 {[%clk 0:02:07.3]} 16. Nd2 {[%clk 0:00:35.4]} 16...
Rhg8 {[%clk 0:02:02.9]} 17. Ne4 {[%clk 0:00:33.1]} 17... Qg6 {[%clk 0:01:49.1]}
18. Ng3 {[%clk 0:00:30.3]} 18... Bd6 {[%clk 0:01:42.2]} 19. Qb5 {[%clk
0:00:23.8]} 19... Qg5 {[%clk 0:01:27.7]} 20. Qxg5 {[%clk 0:00:22.7]} 20... hxg5
{[%clk 0:01:27.5]} 21. Bxh7 {[%clk 0:00:22.8]} 21... Rh8 {[%clk 0:01:27]} 22.
Bd3 {[%clk 0:00:22.3]} 22... Ne5 {[%clk 0:01:25.6]} 23. Re2 {[%clk 0:00:18.6]}
23... Ng4 {[%clk 0:01:23.5]} 24. h3 {[%clk 0:00:11.1]} 24... Bxg3 {[%clk
0:01:17]} 25. fxg3 {[%clk 0:00:11.3]} 25... Ne3 {[%clk 0:01:17.2]} 26. Rf2
{[%clk 0:00:11.5]} 26... Rhf8 {[%clk 0:01:07.2]} 27. g4 {[%clk 0:00:11]} 27...
c5 {[%clk 0:01:05.5]} 28. Re1 {[%clk 0:00:09.5]} 28... c4 {[%clk 0:01:04]} 29.
Bf5 {[%clk 0:00:09]} 29... b5 {[%clk 0:01:03.2]} 30. c3 {[%clk 0:00:07]} 30...
Nxf5 {[%clk 0:00:43]} 31. Rxf5 {[%clk 0:00:07.9]} 31... d3 {[%clk 0:00:41.9]}
32. Rxb5+ {[%clk 0:00:08]} 32... Ka8 {[%clk 0:00:37.3]} 33. Rxg5 {[%clk
0:00:08]} 33... Rfe8 {[%clk 0:00:35]} 34. Rxe8 {[%clk 0:00:07.5]} 34... Rxe8
{[%clk 0:00:35.2]} 35. Rd5 {[%clk 0:00:06.9]} 35... Re2 {[%clk 0:00:35.3]} 36.
b3 {[%clk 0:00:02.3]} 36... Rxa2 {[%clk 0:00:26.8]} 37. bxc4 {[%clk 0:00:02.6]}
37... d2 {[%clk 0:00:26.6]} 38. Kh2 {[%clk 0:00:02.8]} 38... Rc2 {[%clk
0:00:25.1]} 39. h4 {[%clk 0:00:02.9]} 39... Kb7 {[%clk 0:00:25.5]} 40. h5 {[%clk
0:00:03.3]} 40... Rxc3 {[%clk 0:00:20.8]} 41. Rxd2 {[%clk 0:00:03.5]} 41... Rxc4
{[%clk 0:00:21.4]} 42. Kh3 {[%clk 0:00:03.9]} 42... a5 {[%clk 0:00:21.1]} 43. h6
{[%clk 0:00:03.8]} 43... a4 {[%clk 0:00:21.1]} 44. h7 {[%clk 0:00:03.1]} 44...
Rc1 {[%clk 0:00:21.2]} 45. Kh2 {[%clk 0:00:02.3]} 45... Rc8 {[%clk 0:00:21.4]}
46. Rf2 {[%clk 0:00:02.6]} 46... a3 {[%clk 0:00:18.4]} 47. Rxf7+ {[%clk
0:00:02.7]} 47... Kb6 {[%clk 0:00:18.9]} 48. Rf6+ {[%clk 0:00:03]} 48... Kb5
{[%clk 0:00:19.2]} 49. Rf7 {[%clk 0:00:03.5]} 49... Kb6 {[%clk 0:00:19]} 50.
Rf6+ {[%clk 0:00:03.5]} 50... Kb5 {[%clk 0:00:19.4]} 51. Rf3 {[%clk 0:00:03.8]}
51... Kb4 {[%clk 0:00:17.6]} 52. Rf7 {[%clk 0:00:03.8]} 52... a2 {[%clk
0:00:16.7]} 53. Ra7 {[%clk 0:00:03.8]} 53... Kb3 {[%clk 0:00:16.2]} 54. g5
{[%clk 0:00:04.1]} 54... Rc7 {[%clk 0:00:10.8]} 55. h8=Q {[%clk 0:00:03.9]}
55... Rxa7 {[%clk 0:00:10.6]} 56. Qa1 {[%clk 0:00:04.4]} 56... Rh7+ {[%clk
0:00:08]} 57. Kg3 {[%clk 0:00:03.6]} 57... Ka3 {[%clk 0:00:08.5]} 58. g6 {[%clk
0:00:03.6]} 58... Rb7 {[%clk 0:00:09.1]} 59. g7 {[%clk 0:00:03.6]} 59... Rb3+
{[%clk 0:00:08.8]} 60. Kg4 {[%clk 0:00:03.2]} 60... Rb4+ {[%clk 0:00:09.3]} 61.
Kh5 {[%clk 0:00:03.4]} 61... Rb5+ {[%clk 0:00:10.2]} 62. Kh6 {[%clk 0:00:03.7]}
62... Rb6+ {[%clk 0:00:11.1]} 63. Kh7 {[%clk 0:00:03.7]} 63... Rb7 {[%clk
0:00:12]} 64. Kh8 {[%clk 0:00:04.2]} 64... Rb8+ {[%clk 0:00:12.5]} 65. g8=Q
{[%clk 0:00:04.1]} 65... Rb7 {[%clk 0:00:12.9]} 66. Qaxa2+ {[%clk 0:00:03.2]}
66... Kb4 {[%clk 0:00:13.3]} 67. Qgc4# {[%clk 0:00:03.7]} 1-0

[Event "*** Titled Tuesday Blitz"]
[Site "Chess.com"]
[Date "2020.11.03"]
[Round "10"]
[White "Quiet_Desperation"]
[Black "Deepweb2020"]
[Result "1-0"]
[WhiteElo "1858"]
[BlackElo "2235"]
[TimeControl "180+1"]
[EndTime "12:00:50 PST"]
[Termination "Quiet_Desperation won by checkmate"]

1. Nf3 {[%clk 0:03:00.9]} 1... Nf6 {[%clk 0:02:59.5]} 2. b3 {[%clk 0:03:01]}
2... a5 {[%clk 0:02:57.9]} 3. a4 {[%clk 0:02:59.2]} 3... b6 {[%clk 0:02:57.5]}
4. Bb2 {[%clk 0:02:59.2]} 4... Bb7 {[%clk 0:02:58.1]} 5. e3 {[%clk 0:02:59.7]}
5... e6 {[%clk 0:02:58.5]} 6. Be2 {[%clk 0:02:58.9]} 6... d5 {[%clk 0:02:58.1]}
7. O-O {[%clk 0:02:59]} 7... Bd6 {[%clk 0:02:58.2]} 8. d4 {[%clk 0:02:58.9]}
8... h5 {[%clk 0:02:57.5]} 9. Nbd2 {[%clk 0:02:56.3]} 9... Rh6 {[%clk
0:02:57.2]} 10. Ne5 {[%clk 0:02:55.7]} 10... Nbd7 {[%clk 0:02:54.5]} 11. f4
{[%clk 0:02:55.5]} 11... Qe7 {[%clk 0:02:53.4]} 12. c4 {[%clk 0:02:51.3]} 12...
c5 {[%clk 0:02:50.9]} 13. Bf3 {[%clk 0:02:46.2]} 13... h4 {[%clk 0:02:43.2]} 14.
Qe2 {[%clk 0:02:42.5]} 14... h3 {[%clk 0:02:41.5]} 15. g3 {[%clk 0:02:41.1]}
15... O-O-O {[%clk 0:02:22.7]} 16. cxd5 {[%clk 0:02:38]} 16... Nxd5 {[%clk
0:02:18.8]} 17. Ndc4 {[%clk 0:02:31.3]} 17... Bxe5 {[%clk 0:02:07.3]} 18. dxe5
{[%clk 0:02:07.1]} 18... f6 {[%clk 0:01:54]} 19. Rac1 {[%clk 0:01:46]} 19... Kb8
{[%clk 0:01:48.2]} 20. Nd6 {[%clk 0:01:42.8]} 20... g5 {[%clk 0:01:24.5]} 21.
Nxb7 {[%clk 0:01:41.2]} 21... Kxb7 {[%clk 0:01:24]} 22. f5 {[%clk 0:01:36.2]}
22... Nxe5 {[%clk 0:01:21.5]} 23. Bxe5 {[%clk 0:01:35.2]} 23... fxe5 {[%clk
0:01:21.8]} 24. fxe6 {[%clk 0:01:35]} 24... Qxe6 {[%clk 0:01:18]} 25. Be4 {[%clk
0:01:33.7]} 25... Kc7 {[%clk 0:01:07.8]} 26. Qa6 {[%clk 0:01:31.8]} 26... Qc6
{[%clk 0:00:48.1]} 27. Rf7+ {[%clk 0:01:26.5]} 27... Rd7 {[%clk 0:00:47.9]} 28.
Qa7+ {[%clk 0:01:03.4]} 28... Kd6 {[%clk 0:00:47.6]} 29. Rxd7+ {[%clk
0:01:01.3]} 29... Qxd7 {[%clk 0:00:48.1]} 30. Qxd7+ {[%clk 0:01:00]} 30... Kxd7
{[%clk 0:00:48.4]} 31. Bxd5 {[%clk 0:01:00.9]} 31... Rd6 {[%clk 0:00:47.3]} 32.
e4 {[%clk 0:01:01]} 32... g4 {[%clk 0:00:40.2]} 33. Rf1 {[%clk 0:00:58.9]} 33...
Rg6 {[%clk 0:00:40.3]} 34. Rf5 {[%clk 0:00:58]} 34... Kd6 {[%clk 0:00:38.2]} 35.
Rf8 {[%clk 0:00:54.6]} 35... c4 {[%clk 0:00:38]} 36. bxc4 {[%clk 0:00:53.9]}
36... Kc5 {[%clk 0:00:38.1]} 37. Re8 {[%clk 0:00:45]} 37... Kd4 {[%clk
0:00:37.8]} 38. Re6 {[%clk 0:00:42.5]} 38... Rg8 {[%clk 0:00:21.1]} 39. Rxb6
{[%clk 0:00:40.6]} 39... Rf8 {[%clk 0:00:20.6]} 40. Rb1 {[%clk 0:00:37.5]} 40...
Ke3 {[%clk 0:00:18.4]} 41. c5 {[%clk 0:00:36.3]} 41... Rc8 {[%clk 0:00:16.7]}
42. c6 {[%clk 0:00:36.2]} 42... Kd2 {[%clk 0:00:16.7]} 43. Rb2+ {[%clk 0:00:32]}
43... Kc3 {[%clk 0:00:13.2]} 44. Rf2 {[%clk 0:00:29.5]} 44... Kd3 {[%clk
0:00:12.9]} 45. Rf7 {[%clk 0:00:26.7]} 45... Ke3 {[%clk 0:00:12.8]} 46. c7
{[%clk 0:00:23.6]} 46... Ke2 {[%clk 0:00:09]} 47. Bb7 {[%clk 0:00:22.5]} 47...
Re8 {[%clk 0:00:06.3]} 48. c8=Q {[%clk 0:00:20.5]} 48... Rxc8 {[%clk 0:00:06.4]}
49. Bxc8 {[%clk 0:00:21.4]} 49... Ke3 {[%clk 0:00:06.4]} 50. Bb7 {[%clk
0:00:21.4]} 50... Ke2 {[%clk 0:00:06.2]} 51. Rf2+ {[%clk 0:00:20.4]} 51... Ke3
{[%clk 0:00:07.1]} 52. Rb2 {[%clk 0:00:19.5]} 52... Kd3 {[%clk 0:00:07]} 53. Rb5
{[%clk 0:00:19.4]} 53... Ke3 {[%clk 0:00:07.8]} 54. Rxa5 {[%clk 0:00:19.8]}
54... Kd4 {[%clk 0:00:08.5]} 55. Rb5 {[%clk 0:00:19]} 55... Ke3 {[%clk
0:00:09.3]} 56. Rxe5 {[%clk 0:00:17.8]} 56... Kd4 {[%clk 0:00:09.5]} 57. Rg5
{[%clk 0:00:17.7]} 57... Ke3 {[%clk 0:00:10.4]} 58. Rxg4 {[%clk 0:00:18.2]}
58... Kd4 {[%clk 0:00:10.4]} 59. Rh4 {[%clk 0:00:18.6]} 59... Ke3 {[%clk
0:00:10.2]} 60. Rxh3 {[%clk 0:00:19.5]} 60... Kd4 {[%clk 0:00:10.3]} 61. g4
{[%clk 0:00:19.6]} 61... Ke5 {[%clk 0:00:10.1]} 62. Rg3 {[%clk 0:00:19.8]} 62...
Kd4 {[%clk 0:00:10.8]} 63. g5 {[%clk 0:00:20.2]} 63... Ke5 {[%clk 0:00:11.7]}
64. g6 {[%clk 0:00:21.1]} 64... Kd4 {[%clk 0:00:11.5]} 65. g7 {[%clk 0:00:21.5]}
65... Ke5 {[%clk 0:00:12.3]} 66. g8=Q {[%clk 0:00:21]} 66... Kd4 {[%clk
0:00:13]} 67. Qd5# {[%clk 0:00:21.2]} 1-0